[Event "Early-Titled-Tuesday-Blitz-May-14-2024"]
[Site "Chess.com"]
[Date "2024.05.14"]
[Round "1"]
[White "JeFumeDesClopes"]
[Black "twitchTriniCupid"]
[Result "0-1"]
[WhiteElo "2706"]
[BlackElo "2419"]
[TimeControl "180+1"]
[EndTime "8:07:09 PDT"]
[Termination "twitchTriniCupid won by checkmate"]

1. Nf3 {[%clk 0:03:00.9]} 1... g6 {[%clk 0:02:59.5]} 2. e4 {[%clk 0:02:59.5]}
2... c6 {[%clk 0:02:58.3]} 3. d4 {[%clk 0:02:58.6]} 3... d5 {[%clk 0:02:58.1]}
4. Nc3 {[%clk 0:02:59.2]} 4... dxe4 {[%clk 0:02:57.2]} 5. Nxe4 {[%clk
0:03:00.1]} 5... Nf6 {[%clk 0:02:57.1]} 6. Nxf6+ {[%clk 0:02:58.4]} 6... exf6
{[%clk 0:02:57.2]} 7. Bd3 {[%clk 0:02:56.8]} 7... Bg7 {[%clk 0:02:56.9]} 8. O-O
{[%clk 0:02:56.3]} 8... O-O {[%clk 0:02:56.5]} 9. h3 {[%clk 0:02:54.9]} 9... Be6
{[%clk 0:02:55.1]} 10. c4 {[%clk 0:02:51]} 10... Nd7 {[%clk 0:02:54.1]} 11. Re1
{[%clk 0:02:49]} 11... Nb6 {[%clk 0:02:53.2]} 12. b3 {[%clk 0:02:48.5]} 12...
Qc7 {[%clk 0:02:51.7]} 13. Bb2 {[%clk 0:02:42.5]} 13... Rad8 {[%clk 0:02:48.9]}
14. Rc1 {[%clk 0:02:40.3]} 14... Bh6 {[%clk 0:02:47.3]} 15. Rc2 {[%clk
0:02:35.5]} 15... Bg7 {[%clk 0:02:23.6]} 16. Rce2 {[%clk 0:02:25]} 16... Rfe8
{[%clk 0:02:22.2]} 17. Qd2 {[%clk 0:02:25.1]} 17... Nc8 {[%clk 0:02:14.4]} 18.
Qb4 {[%clk 0:02:15.8]} 18... b6 {[%clk 0:02:10.6]} 19. a4 {[%clk 0:02:01.9]}
19... a5 {[%clk 0:02:05.9]} 20. Qc3 {[%clk 0:02:01.1]} 20... Bd7 {[%clk
0:01:51.5]} 21. c5 {[%clk 0:01:52]} 21... Rxe2 {[%clk 0:01:50.8]} 22. Rxe2
{[%clk 0:01:52.9]} 22... Re8 {[%clk 0:01:46.2]} 23. Rxe8+ {[%clk 0:01:50.8]}
23... Bxe8 {[%clk 0:01:46.2]} 24. Bc4 {[%clk 0:01:48.4]} 24... b5 {[%clk
0:01:36.9]} 25. axb5 {[%clk 0:01:42.3]} 25... cxb5 {[%clk 0:01:37.5]} 26. Bf1
{[%clk 0:01:36.1]} 26... Ne7 {[%clk 0:01:33.6]} 27. Qe3 {[%clk 0:01:35.1]} 27...
Bc6 {[%clk 0:01:32.8]} 28. Nd2 {[%clk 0:01:28.7]} 28... Nd5 {[%clk 0:01:30.7]}
29. Qg3 {[%clk 0:01:25.1]} 29... Nf4 {[%clk 0:01:07]} 30. Nf3 {[%clk 0:01:09.4]}
30... h5 {[%clk 0:00:52.7]} 31. Bc1 {[%clk 0:01:07.9]} 31... Bh6 {[%clk
0:00:52.7]} 32. Be3 {[%clk 0:01:01.8]} 32... a4 {[%clk 0:00:43]} 33. bxa4 {[%clk
0:01:00.1]} 33... bxa4 {[%clk 0:00:42.3]} 34. Kh2 {[%clk 0:00:50.2]} 34... Bxf3
{[%clk 0:00:31.7]} 35. Qxf3 {[%clk 0:00:47.1]} 35... Nd5+ {[%clk 0:00:30.7]} 36.
g3 {[%clk 0:00:45.6]} 36... Nxe3 {[%clk 0:00:30.6]} 37. fxe3 {[%clk 0:00:46.3]}
37... a3 {[%clk 0:00:28]} 38. Qa8+ {[%clk 0:00:46.1]} 38... Kg7 {[%clk
0:00:27.2]} 39. Qxa3 {[%clk 0:00:46.8]} 39... Qe7 {[%clk 0:00:27.3]} 40. d5
{[%clk 0:00:43.5]} 40... Bxe3 {[%clk 0:00:23.2]} 41. d6 {[%clk 0:00:39]} 41...
Qe5 {[%clk 0:00:23.4]} 42. d7 {[%clk 0:00:38.6]} 42... h4 {[%clk 0:00:23.5]} 43.
Qxe3 {[%clk 0:00:30.7]} 43... Qxe3 {[%clk 0:00:21.9]} 44. d8=Q {[%clk
0:00:30.8]} 44... Qf2+ {[%clk 0:00:19.3]} 45. Bg2 {[%clk 0:00:28.3]} 45... hxg3+
{[%clk 0:00:18.1]} 46. Kh1 {[%clk 0:00:27.2]} 46... Qe1+ {[%clk 0:00:18]} 47.
Bf1 {[%clk 0:00:28.1]} 47... Qxf1# {[%clk 0:00:17.8]} 0-1

[Event "Early-Titled-Tuesday-Blitz-May-14-2024"]
[Site "Chess.com"]
[Date "2024.05.14"]
[Round "1"]
[White "ketster"]
[Black "Pragmatist237"]
[Result "1-0"]
[WhiteElo "2613"]
[BlackElo "2276"]
[TimeControl "180+1"]
[EndTime "8:07:09 PDT"]
[Termination "ketster won by resignation"]

1. d4 {[%clk 0:02:57.7]} 1... Nf6 {[%clk 0:02:59.8]} 2. Nf3 {[%clk 0:02:57.6]}
2... b6 {[%clk 0:03:00]} 3. g3 {[%clk 0:02:57.7]} 3... Bb7 {[%clk 0:03:00.5]} 4.
Bg2 {[%clk 0:02:58.3]} 4... g6 {[%clk 0:02:59.9]} 5. O-O {[%clk 0:02:58.5]} 5...
Bg7 {[%clk 0:03:00.3]} 6. c4 {[%clk 0:02:58.6]} 6... O-O {[%clk 0:03:00.9]} 7.
Re1 {[%clk 0:02:58.1]} 7... d6 {[%clk 0:03:01.3]} 8. Nc3 {[%clk 0:02:57.4]} 8...
Nbd7 {[%clk 0:03:01.6]} 9. Qc2 {[%clk 0:02:57.3]} 9... e5 {[%clk 0:03:01.8]} 10.
d5 {[%clk 0:02:57]} 10... a5 {[%clk 0:02:59]} 11. e4 {[%clk 0:02:56.9]} 11...
Nc5 {[%clk 0:02:59.2]} 12. Bg5 {[%clk 0:02:56.4]} 12... h6 {[%clk 0:02:58.8]}
13. Bd2 {[%clk 0:02:56.4]} 13... Ne8 {[%clk 0:02:52.4]} 14. Nh4 {[%clk
0:02:53.9]} 14... Bc8 {[%clk 0:02:52.4]} 15. b3 {[%clk 0:02:51.2]} 15... Kh7
{[%clk 0:02:42.9]} 16. a3 {[%clk 0:02:46.4]} 16... Bf6 {[%clk 0:02:41.6]} 17.
Nf3 {[%clk 0:02:45.6]} 17... Bg7 {[%clk 0:02:38.6]} 18. b4 {[%clk 0:02:45.7]}
18... Nb7 {[%clk 0:02:37.9]} 19. Rab1 {[%clk 0:02:36.1]} 19... f5 {[%clk
0:02:37.4]} 20. exf5 {[%clk 0:02:32.3]} 20... Bxf5 {[%clk 0:02:37]} 21. Ne4
{[%clk 0:02:32.5]} 21... Nf6 {[%clk 0:02:23.5]} 22. Nh4 {[%clk 0:02:32]} 22...
Qd7 {[%clk 0:02:10.4]} 23. Nxf6+ {[%clk 0:02:19.3]} 23... Rxf6 {[%clk
0:02:04.5]} 24. Nxf5 {[%clk 0:02:18.4]} 24... Qxf5 {[%clk 0:02:03.6]} 25. Qxf5
{[%clk 0:02:14.1]} 25... gxf5 {[%clk 0:01:58]} 26. f4 {[%clk 0:02:13.3]} 26...
e4 {[%clk 0:01:57.2]} 27. g4 {[%clk 0:02:11.8]} 27... fxg4 {[%clk 0:01:51.9]}
28. Rxe4 {[%clk 0:02:06.1]} 28... Rf7 {[%clk 0:01:46.8]} 29. Re6 {[%clk
0:01:58.1]} 29... axb4 {[%clk 0:01:35.2]} 30. axb4 {[%clk 0:01:56.5]} 30... Ra2
{[%clk 0:01:31.4]} 31. Be4+ {[%clk 0:01:56.1]} 31... Kg8 {[%clk 0:01:28.1]} 32.
Rd1 {[%clk 0:01:53.2]} 32... Nd8 {[%clk 0:01:22.9]} 33. Re8+ {[%clk 0:01:48]}
33... Rf8 {[%clk 0:01:23.1]} 34. Re7 {[%clk 0:01:44.7]} 34... Rf7 {[%clk
0:01:22.1]} 35. Re8+ {[%clk 0:01:43.1]} 35... Rf8 {[%clk 0:01:22.4]} 36. Rxf8+
{[%clk 0:01:43.3]} 36... Kxf8 {[%clk 0:01:21.3]} 37. Bf5 {[%clk 0:01:27.8]}
37... h5 {[%clk 0:01:21.2]} 38. Be3 {[%clk 0:01:25.1]} 38... Rb2 {[%clk
0:01:17.6]} 39. Rb1 {[%clk 0:01:22.3]} 39... Rxb1+ {[%clk 0:01:14.9]} 40. Bxb1
{[%clk 0:01:23.2]} 40... Bc3 {[%clk 0:01:14.8]} 41. c5 {[%clk 0:01:19.3]} 41...
bxc5 {[%clk 0:01:14.3]} 42. bxc5 {[%clk 0:01:19.2]} 42... Kg7 {[%clk 0:01:12]}
43. c6 {[%clk 0:01:14.8]} 43... Nf7 {[%clk 0:01:10.1]} 44. Bb6 {[%clk
0:01:10.1]} 44... Kf6 {[%clk 0:00:57.7]} 45. Bxc7 {[%clk 0:01:05.8]} 45... Bd4+
{[%clk 0:00:56.3]} 46. Kg2 {[%clk 0:01:02.5]} 46... Ba7 {[%clk 0:00:56.1]} 47.
Ba5 {[%clk 0:00:56.2]} 47... Ke7 {[%clk 0:00:51.6]} 48. Bf5 {[%clk 0:00:50.2]}
48... Bb8 {[%clk 0:00:48.8]} 49. c7 {[%clk 0:00:48.6]} 49... Bxc7 {[%clk
0:00:48.9]} 50. Bxc7 {[%clk 0:00:49.5]} 50... Kf6 {[%clk 0:00:45.4]} 51. Be6
{[%clk 0:00:48.4]} 51... Nh6 {[%clk 0:00:42]} 52. Bxd6 {[%clk 0:00:47.7]} 52...
Nf5 {[%clk 0:00:42.3]} 53. Bxf5 {[%clk 0:00:47.4]} 53... Kxf5 {[%clk 0:00:43.2]}
54. Be5 {[%clk 0:00:47.2]} 54... h4 {[%clk 0:00:43.7]} 55. d6 {[%clk 0:00:46.8]}
55... Ke6 {[%clk 0:00:44.5]} 56. Kf2 {[%clk 0:00:44.8]} 56... g3+ {[%clk
0:00:42.8]} 57. hxg3 {[%clk 0:00:44.4]} 57... hxg3+ {[%clk 0:00:43.6]} 58. Kxg3
{[%clk 0:00:45.3]} 1-0

[Event "Early-Titled-Tuesday-Blitz-May-14-2024"]
[Site "Chess.com"]
[Date "2024.05.14"]
[Round "1"]
[White "tarno17"]
[Black "Shuvalov"]
[Result "1-0"]
[WhiteElo "2170"]
[BlackElo "2558"]
[TimeControl "180+1"]
[EndTime "8:07:09 PDT"]
[Termination "tarno17 won on time"]

1. e4 {[%clk 0:02:58.9]} 1... e6 {[%clk 0:02:58.7]} 2. d4 {[%clk 0:02:58.3]}
2... d5 {[%clk 0:02:58]} 3. Nd2 {[%clk 0:02:58.2]} 3... c5 {[%clk 0:02:55.8]} 4.
exd5 {[%clk 0:02:56.7]} 4... exd5 {[%clk 0:02:56]} 5. Bb5+ {[%clk 0:02:53.3]}
5... Nc6 {[%clk 0:02:54.5]} 6. Ne2 {[%clk 0:02:51.5]} 6... a6 {[%clk 0:02:49.9]}
7. Bxc6+ {[%clk 0:02:47.5]} 7... bxc6 {[%clk 0:02:50.8]} 8. O-O {[%clk
0:02:42.9]} 8... Nf6 {[%clk 0:02:49.8]} 9. Nf3 {[%clk 0:02:38.2]} 9... Be7
{[%clk 0:02:39.4]} 10. Bg5 {[%clk 0:02:17.9]} 10... O-O {[%clk 0:02:33.9]} 11.
h3 {[%clk 0:02:07.4]} 11... h6 {[%clk 0:02:30.3]} 12. Bh4 {[%clk 0:02:06.5]}
12... Re8 {[%clk 0:02:11.3]} 13. Ne5 {[%clk 0:01:39.2]} 13... Qc7 {[%clk
0:01:59]} 14. c3 {[%clk 0:01:26.1]} 14... c4 {[%clk 0:01:48.8]} 15. Nf4 {[%clk
0:01:17.6]} 15... g5 {[%clk 0:01:38.7]} 16. Bg3 {[%clk 0:00:51.2]} 16... gxf4
{[%clk 0:01:28.4]} 17. Bxf4 {[%clk 0:00:52.1]} 17... Bd6 {[%clk 0:01:05.1]} 18.
Re1 {[%clk 0:00:51.9]} 18... Bf5 {[%clk 0:01:01.1]} 19. Re3 {[%clk 0:00:48]}
19... Ne4 {[%clk 0:00:56.8]} 20. Qh5 {[%clk 0:00:42.1]} 20... Bh7 {[%clk
0:00:43.8]} 21. f3 {[%clk 0:00:19.6]} 21... Ng5 {[%clk 0:00:40.1]} 22. Qxh6
{[%clk 0:00:18.5]} 22... Ne6 {[%clk 0:00:35.7]} 23. Bh2 {[%clk 0:00:14.7]} 23...
Bf8 {[%clk 0:00:19.8]} 24. Qh4 {[%clk 0:00:12.3]} 24... Qe7 {[%clk 0:00:13.4]}
25. Qg3+ {[%clk 0:00:09.4]} 25... Bg7 {[%clk 0:00:12.4]} 26. Ng4 {[%clk
0:00:09.7]} 26... Kh8 {[%clk 0:00:05.6]} 27. Rae1 {[%clk 0:00:09.7]} 27... Qf8
{[%clk 0:00:05.2]} 28. Ne5 {[%clk 0:00:08.6]} 28... Bh6 {[%clk 0:00:00.4]} 29.
R3e2 {[%clk 0:00:08.5]} 1-0

[Event "Early-Titled-Tuesday-Blitz-May-14-2024"]
[Site "Chess.com"]
[Date "2024.05.14"]
[Round "1"]
[White "JaloliddinIlkhomi"]
[Black "MaxLeto"]
[Result "1-0"]
[WhiteElo "2755"]
[BlackElo "2422"]
[TimeControl "180+1"]
[EndTime "8:07:12 PDT"]
[Termination "JaloliddinIlkhomi won on time"]

1. Nf3 {[%clk 0:03:00.9]} 1... d5 {[%clk 0:02:52.2]} 2. d4 {[%clk 0:03:00.4]}
2... Nf6 {[%clk 0:02:51.8]} 3. Bf4 {[%clk 0:03:00.6]} 3... c5 {[%clk 0:02:50.3]}
4. e3 {[%clk 0:03:00.9]} 4... Nc6 {[%clk 0:02:49.7]} 5. c3 {[%clk 0:03:01.4]}
5... Qb6 {[%clk 0:02:49.7]} 6. Qc2 {[%clk 0:03:00.3]} 6... Bf5 {[%clk
0:02:48.3]} 7. dxc5 {[%clk 0:03:00.6]} 7... Bxc2 {[%clk 0:02:39.1]} 8. cxb6
{[%clk 0:03:01.5]} 8... a6 {[%clk 0:01:49.5]} 9. Nbd2 {[%clk 0:02:49.1]} 9... e6
{[%clk 0:01:48.1]} 10. Nd4 {[%clk 0:02:43.2]} 10... Ba4 {[%clk 0:01:35.8]} 11.
Nxc6 {[%clk 0:02:33.8]} 11... Bxc6 {[%clk 0:01:35.4]} 12. Nb3 {[%clk 0:02:28.3]}
12... Nd7 {[%clk 0:01:22.2]} 13. Bc7 {[%clk 0:02:20.2]} 13... Nc5 {[%clk
0:00:58.4]} 14. Be2 {[%clk 0:01:35.6]} 14... Kd7 {[%clk 0:00:48.6]} 15. O-O
{[%clk 0:01:33.1]} 15... Bd6 {[%clk 0:00:40]} 16. Nxc5+ {[%clk 0:01:29.7]} 16...
Bxc5 {[%clk 0:00:39.5]} 17. c4 {[%clk 0:01:04.4]} 17... Bd6 {[%clk 0:00:24.7]}
18. cxd5 {[%clk 0:01:04]} 18... Bxd5 {[%clk 0:00:22.5]} 19. Bxd6 {[%clk
0:00:59]} 19... Kxd6 {[%clk 0:00:22.1]} 20. Rfd1 {[%clk 0:00:59.6]} 20... Kc6
{[%clk 0:00:17.1]} 21. Bf3 {[%clk 0:00:40.4]} 21... Rhd8 {[%clk 0:00:14]} 22. e4
{[%clk 0:00:33.5]} 22... Bc4 {[%clk 0:00:14.3]} 23. Rdc1 {[%clk 0:00:34.2]}
23... Kb5 {[%clk 0:00:13.1]} 24. b3 {[%clk 0:00:26]} 24... Bd3 {[%clk 0:00:11]}
25. Rc7 {[%clk 0:00:26.6]} 25... Kxb6 {[%clk 0:00:06.9]} 26. Rxf7 {[%clk
0:00:26.7]} 26... Rac8 {[%clk 0:00:06.7]} 27. e5 {[%clk 0:00:27.1]} 27... Rc7
{[%clk 0:00:05.6]} 28. Rxc7 {[%clk 0:00:26.2]} 28... Kxc7 {[%clk 0:00:06.5]} 29.
Rc1+ {[%clk 0:00:26.7]} 29... Kb6 {[%clk 0:00:06.7]} 30. Rd1 {[%clk 0:00:27.4]}
30... Kc7 {[%clk 0:00:04.3]} 31. Rc1+ {[%clk 0:00:25.5]} 31... Kb6 {[%clk
0:00:04.3]} 32. Rd1 {[%clk 0:00:21.4]} 32... Kc7 {[%clk 0:00:04.2]} 33. Bg4
{[%clk 0:00:22.1]} 33... Bf5 {[%clk 0:00:01.2]} 34. Rxd8 {[%clk 0:00:22.1]}
34... Kxd8 {[%clk 0:00:02.1]} 35. Bxf5 {[%clk 0:00:22.8]} 35... exf5 {[%clk
0:00:03]} 36. f4 {[%clk 0:00:23.7]} 1-0

[Event "Early-Titled-Tuesday-Blitz-May-14-2024"]
[Site "Chess.com"]
[Date "2024.05.14"]
[Round "1"]
[White "Pomegranate988"]
[Black "MiguelBestard1981"]
[Result "1/2-1/2"]
[WhiteElo "2641"]
[BlackElo "2337"]
[TimeControl "180+1"]
[EndTime "8:07:15 PDT"]
[Termination "Game drawn by repetition"]

1. Nf3 {[%clk 0:02:57.8]} 1... d5 {[%clk 0:02:59.9]} 2. g3 {[%clk 0:02:49]} 2...
Bf5 {[%clk 0:02:56.3]} 3. Bg2 {[%clk 0:02:41.7]} 3... h6 {[%clk 0:02:53.7]} 4.
c4 {[%clk 0:02:38.1]} 4... c6 {[%clk 0:02:53]} 5. Qb3 {[%clk 0:02:36.3]} 5...
Qb6 {[%clk 0:02:30.4]} 6. Qxb6 {[%clk 0:02:35.2]} 6... axb6 {[%clk 0:02:30.3]}
7. cxd5 {[%clk 0:02:34.4]} 7... cxd5 {[%clk 0:02:30.2]} 8. Nc3 {[%clk
0:02:34.1]} 8... e6 {[%clk 0:02:23.9]} 9. Nd4 {[%clk 0:02:14]} 9... Bh7 {[%clk
0:02:20.9]} 10. Ndb5 {[%clk 0:02:08.9]} 10... Na6 {[%clk 0:02:20.4]} 11. d3
{[%clk 0:02:06.4]} 11... Nf6 {[%clk 0:02:16]} 12. Bf4 {[%clk 0:01:49.9]} 12...
Be7 {[%clk 0:02:15.7]} 13. Nd6+ {[%clk 0:01:43.4]} 13... Bxd6 {[%clk 0:02:13.4]}
14. Bxd6 {[%clk 0:01:44.3]} 14... Kd7 {[%clk 0:02:13.4]} 15. Be5 {[%clk
0:01:38]} 15... Nb4 {[%clk 0:02:09.1]} 16. Kd2 {[%clk 0:01:36.7]} 16... Nc6
{[%clk 0:02:09.1]} 17. Bxf6 {[%clk 0:01:26.5]} 17... gxf6 {[%clk 0:02:10]} 18.
a3 {[%clk 0:01:10.9]} 18... Nd4 {[%clk 0:02:05.7]} 19. Rad1 {[%clk 0:01:06.3]}
19... Rhc8 {[%clk 0:01:56.8]} 20. e3 {[%clk 0:00:58.4]} 20... Nb3+ {[%clk
0:01:56.8]} 21. Kc2 {[%clk 0:00:51.6]} 21... Nc5 {[%clk 0:01:53.1]} 22. Bf1
{[%clk 0:00:42.4]} 22... Na4 {[%clk 0:01:52.9]} 23. Kb3 {[%clk 0:00:38.8]} 23...
Nxc3 {[%clk 0:01:51.5]} 24. bxc3 {[%clk 0:00:39.7]} 24... Ra5 {[%clk 0:01:49.9]}
25. d4 {[%clk 0:00:36.1]} 25... Be4 {[%clk 0:01:40.4]} 26. Rg1 {[%clk
0:00:34.9]} 26... Bf3 {[%clk 0:01:40.4]} 27. Ra1 {[%clk 0:00:34.4]} 27... h5
{[%clk 0:01:39.6]} 28. a4 {[%clk 0:00:34.6]} 28... Rg8 {[%clk 0:01:19.9]} 29.
Bb5+ {[%clk 0:00:34.9]} 29... Ke7 {[%clk 0:01:19.9]} 30. Rac1 {[%clk 0:00:33.8]}
30... f5 {[%clk 0:01:18.9]} 31. Kb4 {[%clk 0:00:33.8]} 31... Raa8 {[%clk
0:01:10]} 32. c4 {[%clk 0:00:33.9]} 32... dxc4 {[%clk 0:01:09.7]} 33. Rxc4
{[%clk 0:00:34.8]} 33... Rac8 {[%clk 0:01:08.5]} 34. Rgc1 {[%clk 0:00:34.7]}
34... Rxc4+ {[%clk 0:01:03.4]} 35. Rxc4 {[%clk 0:00:35.6]} 35... Kd6 {[%clk
0:01:03.5]} 36. h4 {[%clk 0:00:36.2]} 36... Bc6 {[%clk 0:00:57.3]} 37. Rc1
{[%clk 0:00:34.3]} 37... Ra8 {[%clk 0:00:56.2]} 38. Rc3 {[%clk 0:00:32.9]} 38...
Ra5 {[%clk 0:00:56.2]} 39. Rc2 {[%clk 0:00:32.3]} 39... Bxb5 {[%clk 0:00:55.4]}
40. axb5 {[%clk 0:00:33.2]} 40... Kd7 {[%clk 0:00:51.8]} 41. Rd2 {[%clk
0:00:31.4]} 41... Ra1 {[%clk 0:00:49.3]} 42. d5 {[%clk 0:00:31.3]} 42... e5
{[%clk 0:00:48.3]} 43. d6 {[%clk 0:00:27.7]} 43... Rb1+ {[%clk 0:00:45.6]} 44.
Kc4 {[%clk 0:00:26.4]} 44... Rc1+ {[%clk 0:00:44.4]} 45. Kb4 {[%clk 0:00:27]}
45... Rc5 {[%clk 0:00:43.5]} 46. f4 {[%clk 0:00:25.8]} 46... f6 {[%clk
0:00:41.5]} 47. Rd1 {[%clk 0:00:24.5]} 47... Rc2 {[%clk 0:00:37.9]} 48. Rd3
{[%clk 0:00:23.6]} 48... Rb2+ {[%clk 0:00:38.1]} 49. Kc4 {[%clk 0:00:23.2]}
49... Rc2+ {[%clk 0:00:38.3]} 50. Kb4 {[%clk 0:00:23.3]} 50... Rb2+ {[%clk
0:00:38.6]} 51. Kc4 {[%clk 0:00:23.7]} 51... Rc2+ {[%clk 0:00:38.7]} 52. Kb4
{[%clk 0:00:23.5]} 1/2-1/2

[Event "Early-Titled-Tuesday-Blitz-May-14-2024"]
[Site "Chess.com"]
[Date "2024.05.14"]
[Round "1"]
[White "Shiner22"]
[Black "Zq1"]
[Result "0-1"]
[WhiteElo "2293"]
[BlackElo "2619"]
[TimeControl "180+1"]
[EndTime "8:07:16 PDT"]
[Termination "Zq1 won by resignation"]

1. e4 {[%clk 0:02:59.6]} 1... c5 {[%clk 0:02:59.2]} 2. d4 {[%clk 0:02:59.1]}
2... cxd4 {[%clk 0:02:57.4]} 3. c3 {[%clk 0:02:59.5]} 3... dxc3 {[%clk
0:02:57.3]} 4. Nxc3 {[%clk 0:03:00.4]} 4... d6 {[%clk 0:02:57.5]} 5. Bc4 {[%clk
0:02:59.5]} 5... e6 {[%clk 0:02:57.7]} 6. Nf3 {[%clk 0:02:59.5]} 6... a6 {[%clk
0:02:57.9]} 7. O-O {[%clk 0:02:59.4]} 7... Be7 {[%clk 0:02:58.1]} 8. Qe2 {[%clk
0:02:59]} 8... b5 {[%clk 0:02:58.1]} 9. Bb3 {[%clk 0:02:58.4]} 9... Nf6 {[%clk
0:02:58]} 10. Rd1 {[%clk 0:02:57.8]} 10... Nbd7 {[%clk 0:02:57]} 11. e5 {[%clk
0:02:40.1]} 11... dxe5 {[%clk 0:02:56]} 12. Nxe5 {[%clk 0:02:40.2]} 12... Qb6
{[%clk 0:02:55.7]} 13. Be3 {[%clk 0:02:26.8]} 13... Qb7 {[%clk 0:02:54.3]} 14.
Nxf7 {[%clk 0:01:53.3]} 14... Kxf7 {[%clk 0:02:51.8]} 15. Bxe6+ {[%clk
0:01:51.6]} 15... Kxe6 {[%clk 0:02:50.3]} 16. Bc5+ {[%clk 0:01:46.6]} 16... Ne5
{[%clk 0:02:49.7]} 17. Bxe7 {[%clk 0:01:16]} 17... Qxe7 {[%clk 0:02:46]} 18. f4
{[%clk 0:01:15.9]} 18... Qc5+ {[%clk 0:02:40.9]} 19. Kh1 {[%clk 0:01:13.8]}
19... Ng4 {[%clk 0:02:34]} 20. h3 {[%clk 0:00:56.6]} 20... Nf2+ {[%clk
0:02:09.5]} 21. Kh2 {[%clk 0:00:56.2]} 21... Nxd1 {[%clk 0:02:08.6]} 22. Rxd1
{[%clk 0:00:55.2]} 22... Bb7 {[%clk 0:02:04.4]} 23. Nd5 {[%clk 0:00:33.6]} 23...
Rhc8 {[%clk 0:00:39]} 24. Qxe5+ {[%clk 0:00:20.9]} 24... Kf7 {[%clk 0:00:38.2]}
25. Qf5+ {[%clk 0:00:11.9]} 25... Kg8 {[%clk 0:00:37.7]} 26. b4 {[%clk
0:00:08.7]} 26... Qf8 {[%clk 0:00:34.2]} 27. Qe6+ {[%clk 0:00:06.7]} 27... Qf7
{[%clk 0:00:30.3]} 28. Ne7+ {[%clk 0:00:06.1]} 28... Kf8 {[%clk 0:00:30.4]} 29.
Qxf7+ {[%clk 0:00:03.7]} 29... Kxf7 {[%clk 0:00:30.3]} 30. Nxc8 {[%clk
0:00:04.3]} 30... Bxc8 {[%clk 0:00:29.9]} 31. Rd8 {[%clk 0:00:04.1]} 31... Ke7
{[%clk 0:00:25]} 32. Rg8 {[%clk 0:00:03.9]} 32... Kf6 {[%clk 0:00:23]} 33. g4
{[%clk 0:00:03.4]} 33... Bb7 {[%clk 0:00:21.4]} 34. g5+ {[%clk 0:00:04]} 34...
Kf7 {[%clk 0:00:20.7]} 35. Rxa8 {[%clk 0:00:04]} 35... Bxa8 {[%clk 0:00:20.6]}
36. f5 {[%clk 0:00:04.9]} 36... Be4 {[%clk 0:00:20]} 0-1

[Event "Early-Titled-Tuesday-Blitz-May-14-2024"]
[Site "Chess.com"]
[Date "2024.05.14"]
[Round "1"]
[White "valik3504"]
[Black "FXDon77"]
[Result "1/2-1/2"]
[WhiteElo "2523"]
[BlackElo "2884"]
[TimeControl "180+1"]
[EndTime "8:07:18 PDT"]
[Termination "Game drawn by repetition"]

1. Nf3 {[%clk 0:03:00]} 1... d5 {[%clk 0:02:58.9]} 2. c4 {[%clk 0:02:59.8]} 2...
e6 {[%clk 0:02:58]} 3. d4 {[%clk 0:02:59.9]} 3... Nf6 {[%clk 0:02:58.1]} 4. Bg5
{[%clk 0:02:59.8]} 4... Bb4+ {[%clk 0:02:57.6]} 5. Nbd2 {[%clk 0:02:57.9]} 5...
h6 {[%clk 0:02:55.2]} 6. Bxf6 {[%clk 0:02:55.2]} 6... Qxf6 {[%clk 0:02:55.1]} 7.
Qa4+ {[%clk 0:02:53.9]} 7... Nc6 {[%clk 0:02:54.7]} 8. e3 {[%clk 0:02:54.1]}
8... O-O {[%clk 0:02:50.2]} 9. cxd5 {[%clk 0:02:29]} 9... exd5 {[%clk
0:02:49.8]} 10. Bb5 {[%clk 0:02:28.5]} 10... Bd7 {[%clk 0:02:36.2]} 11. Bxc6
{[%clk 0:02:16.7]} 11... Bxd2+ {[%clk 0:02:31]} 12. Nxd2 {[%clk 0:02:17]} 12...
Bxc6 {[%clk 0:02:30]} 13. Qb3 {[%clk 0:02:09.3]} 13... a5 {[%clk 0:02:17.4]} 14.
a3 {[%clk 0:01:58.6]} 14... a4 {[%clk 0:02:16.9]} 15. Qb4 {[%clk 0:01:58.4]}
15... Ra6 {[%clk 0:02:09.2]} 16. O-O {[%clk 0:01:56.9]} 16... Rb6 {[%clk
0:02:08.6]} 17. Qc3 {[%clk 0:01:56.8]} 17... Rc8 {[%clk 0:01:59.8]} 18. Rfc1
{[%clk 0:01:53.6]} 18... Bd7 {[%clk 0:01:54.5]} 19. Nf3 {[%clk 0:01:52.2]} 19...
c6 {[%clk 0:01:48.7]} 20. Ne5 {[%clk 0:01:44.7]} 20... Bf5 {[%clk 0:01:45.4]}
21. Qd2 {[%clk 0:01:37.6]} 21... Rb3 {[%clk 0:01:41.7]} 22. Rc3 {[%clk
0:01:35.1]} 22... Qd6 {[%clk 0:01:32.5]} 23. Rxb3 {[%clk 0:01:04.4]} 23... axb3
{[%clk 0:01:32.3]} 24. Qb4 {[%clk 0:01:04.6]} 24... Qxb4 {[%clk 0:01:09.1]} 25.
axb4 {[%clk 0:01:05.5]} 25... b6 {[%clk 0:00:54]} 26. g4 {[%clk 0:00:40.2]}
26... Bc2 {[%clk 0:00:45.8]} 27. Ra6 {[%clk 0:00:32.7]} 27... c5 {[%clk
0:00:41.6]} 28. bxc5 {[%clk 0:00:18.4]} 28... bxc5 {[%clk 0:00:40.6]} 29. Nc6
{[%clk 0:00:18.2]} 29... Kf8 {[%clk 0:00:14.2]} 30. dxc5 {[%clk 0:00:18.3]}
30... Ke8 {[%clk 0:00:14.8]} 31. Rb6 {[%clk 0:00:17.7]} 31... Kd7 {[%clk
0:00:13.4]} 32. Ne5+ {[%clk 0:00:17.5]} 32... Ke7 {[%clk 0:00:11.4]} 33. Nc6+
{[%clk 0:00:10.6]} 33... Kd7 {[%clk 0:00:11.5]} 34. Ne5+ {[%clk 0:00:10.9]}
34... Ke7 {[%clk 0:00:12.2]} 35. Nc6+ {[%clk 0:00:06.1]} 35... Kd7 {[%clk
0:00:11.4]} 1/2-1/2